bitfinex/quotes_BTCUSD_20251010
["timestamp","ask_amount","ask_price","bid_price","bid_amount"]
[1760068799824,1.50274301,121190.0,121180.0,1e-08]
[1760068800108,1.76370504,121190.0,121180.0,1e-08]
[1760068801064,1.76568328,121190.0,121180.0,1e-08]
[1760068801283,1.55093764,121190.0,121180.0,1e-08]
[1760068801537,1.53308328,121190.0,121180.0,1e-08]
[1760068801778,1.76676328,121190.0,121180.0,1e-08]
[1760068802052,1.91007685,121190.0,121180.0,1e-08]
[1760068802264,1.92901121,121190.0,121180.0,1e-08]
[1760068803341,1.89941197,121190.0,121180.0,1e-08]
[1760068803560,0.87479761,121190.0,121180.0,1e-08]
[1760068803783,1.88147761,121190.0,121180.0,1e-08]
[1760068804209,1.77849938,121190.0,121180.0,1e-08]
[1760068804418,1.87849937,121190.0,121180.0,1e-08]
[1760068805059,1.90812359,121190.0,121180.0,1e-08]
[1760068805547,1.90811766,121190.0,121180.0,1e-08]
[1760068806013,1.67443766,121190.0,121180.0,1e-08]
[1760068806461,1.49770401,121190.0,121180.0,1e-08]
[1760068806679,1.1106091,121190.0,121180.0,1e-08]
[1760068806915,1.08098488,121190.0,121180.0,1e-08]
[1760068807358,0.69675294,121190.0,121180.0,1e-08]
[1760068807578,0.71520622,121190.0,121180.0,1e-08]
[1760068807808,0.69740677,121190.0,121180.0,1e-08]
[1760068808281,0.90792172,121190.0,121180.0,1e-08]
[1760068808501,0.32770348,121190.0,121180.0,0.44562807]
[1760068808718,0.56138348,121190.0,121180.0,0.44562807]
[1760068808975,0.32770348,121190.0,121180.0,0.44562807]
[1760068809200,0.53659011,121190.0,121180.0,0.83439613]
[1760068809423,0.30291011,121190.0,121180.0,0.83439613]
[1760068809647,0.30291011,121190.0,121180.0,0.05686001]
[1760068809865,0.30291011,121190.0,121180.0,0.83439613]
[1760068810082,0.53659011,121190.0,121180.0,0.83439613]
[1760068810309,0.30291011,121190.0,121180.0,0.05686001]
[1760068810558,0.53559011,121190.0,121180.0,0.05686001]
[1760068810995,0.53559011,121190.0,121180.0,0.07336438]
[1760068811212,0.53535598,121190.0,121180.0,0.46213244]
[1760068811432,0.30167598,121190.0,121180.0,0.44562807]
[1760068811686,0.25167598,121190.0,121180.0,0.44562807]
[1760068811914,0.16579598,121190.0,121180.0,0.44562807]
[1760068812134,0.001,121190.0,121180.0,0.99943986]
[1760068812372,0.23468,121190.0,121180.0,0.99943986]
[1760068812802,0.16603011,121190.0,121180.0,0.99943986]
[1760068813010,0.23468,121190.0,121180.0,1.00754723]
[1760068813219,0.001,121190.0,121180.0,1.00754723]
[1760068813643,0.001,121190.0,121180.0,1.37769913]
[1760068814064,0.23472,121190.0,121180.0,1.37769913]
[1760068814795,0.23465043,121190.0,121180.0,1.37769913]
[1760068815007,0.23424799,121190.0,121180.0,1.37869913]
[1760068815207,0.00052799,121190.0,121180.0,1.37869913]
[1760068815701,0.23420799,121190.0,121180.0,0.60116301]
[1760068815921,0.23420799,121190.0,121180.0,1.37869913]
[1760068816166,0.00052799,121190.0,121180.0,1.37869913]
[1760068816619,0.3992381,121190.0,121180.0,0.39786001]
[1760068816836,0.39905802,121190.0,121180.0,0.78662807]
[1760068817727,0.16541802,121190.0,121180.0,0.78662807]
[1760068817944,0.39913802,121190.0,121180.0,0.78662807]
[1760068818149,0.39866889,121190.0,121180.0,0.78662807]
[1760068818586,0.16494889,121190.0,121180.0,0.78562807]
[1760068818841,0.39866889,121190.0,121180.0,0.78562807]
[1760068819051,0.39966889,121190.0,121180.0,0.78562807]
[1760068819260,0.39862889,121190.0,121180.0,0.78562807]
[1760068820334,0.39862889,121190.0,121180.0,0.81041333]
[1760068820544,0.39851327,121190.0,121180.0,0.81041333]
[1760068820754,0.39827918,121190.0,121180.0,0.81041333]
[1760068820983,0.39827918,121190.0,121180.0,1.19918139]
[1760068821195,0.16459918,121190.0,121180.0,1.19918139]
[1760068821416,0.16503011,121190.0,121180.0,1.36422512]
[1760068821874,0.16409089,121190.0,121180.0,1.36422512]
[1760068822088,0.23364,121190.0,121180.0,1.36422512]
[1760068822313,0.16501838,121200.0,121180.0,1.36422512]
[1760068822533,0.23368,121190.0,121180.0,0.97891895]
[1760068823006,0.25911479,121210.0,121190.0,0.16502551]
[1760068823224,0.23372,121200.0,121190.0,0.20843741]
[1760068823441,0.3987365,121200.0,121190.0,0.22534741]
[1760068823870,0.3987365,121200.0,121190.0,0.64080547]
[1760068824537,0.3987365,121200.0,121190.0,0.47577996]
[1760068824764,0.39868104,121200.0,121190.0,0.64081007]
[1760068824975,0.39868104,121200.0,121190.0,0.66559175]
[1760068825632,0.23366454,121200.0,121190.0,0.66559175]
[1760068825839,0.39854098,121200.0,121190.0,0.66559175]
[1760068826261,0.39854098,121200.0,121190.0,0.66659175]
[1760068826478,0.23352448,121200.0,121190.0,0.66659175]
[1760068826712,0.39854098,121200.0,121190.0,0.50156164]
[1760068826939,0.39854098,121200.0,121190.0,0.66659175]
[1760068827397,0.39854098,121200.0,121190.0,0.50156164]
[1760068827827,0.39842442,121200.0,121190.0,0.50156164]
[1760068828747,0.39842442,121200.0,121190.0,0.66659175]
[1760068829140,0.1650165,121200.0,121190.0,0.50156164]
[1760068829363,0.3986565,121200.0,121190.0,0.50156164]
[1760068829990,0.23364,121200.0,121190.0,0.66659175]
[1760068830210,0.17327479,121210.0,121190.0,0.66659175]
[1760068830427,0.1650165,121200.0,121190.0,0.05595168]
[1760068830694,0.3986165,121200.0,121190.0,0.05595168]
[1760068830912,0.3986165,121200.0,121190.0,0.44471974]
[1760068831154,0.3986165,121200.0,121190.0,0.47140974]
[1760068832014,0.1650165,121200.0,121190.0,0.47140974]
[1760068832230,0.3986165,121200.0,121190.0,0.47140974]
[1760068832466,0.3986165,121200.0,121190.0,0.47040974]
[1760068832467,0.1650165,121200.0,121190.0,0.47040974]
[1760068832684,0.39650225,121200.0,121190.0,0.47040974]
[1760068833124,0.16428081,121200.0,121190.0,0.08164168]
[1760068833349,0.16503011,121190.0,121180.0,0.01326]
[1760068833567,0.55379817,121190.0,121180.0,0.03003]
[1760068833802,0.16504373,121180.0,121170.0,0.03856246]
[1760068834020,0.16504373,121180.0,121170.0,0.05533246]
[1760068834231,0.55381179,121180.0,121170.0,0.05533246]
[1760068834483,0.78749179,121180.0,121170.0,0.05533246]
[1760068834745,0.78749179,121180.0,121170.0,0.03054603]
[1760068834958,0.78753179,121180.0,121170.0,0.00051603]
[1760068835175,0.7870627,121180.0,121170.0,0.00051603]
[1760068835388,0.5533427,121180.0,121170.0,0.00051603]
[1760068835597,0.7870627,121180.0,121170.0,0.00051603]
[1760068836505,0.7870627,121180.0,121170.0,0.03081603]
[1760068837180,0.16457464,121180.0,121170.0,0.44531409]
[1760068837399,0.25041464,121180.0,121170.0,0.44531409]
[1760068837614,0.48390057,121180.0,121170.0,0.44531409]
[1760068838060,0.16434057,121180.0,121170.0,0.44531409]
[1760068838322,0.39810057,121180.0,121170.0,0.44531409]
[1760068838539,0.16434057,121180.0,121170.0,0.44531409]
[1760068838768,0.39810057,121180.0,121170.0,0.44531409]
[1760068839434,0.16434057,121180.0,121170.0,0.44531409]
[1760068839872,0.16434057,121180.0,121170.0,0.05654603]
[1760068839873,0.39810057,121180.0,121170.0,0.05654603]
[1760068840088,0.39810057,121180.0,121170.0,0.46181982]
[1760068840297,0.16434057,121180.0,121170.0,0.44531409]
[1760068840558,0.16503011,121190.0,121170.0,0.61037144]
[1760068840778,0.25087011,121190.0,121180.0,0.42802806]
[1760068841006,0.25087011,121190.0,121180.0,0.05603]
[1760068841239,0.25087011,121190.0,121180.0,0.0303]
[1760068841468,0.8811033,121190.0,121180.0,0.0303]
[1760068841723,0.89627912,121190.0,121180.0,0.0303]
[1760068841959,0.16504373,121180.0,121170.0,0.01404603]
[1760068842181,0.55381179,121180.0,121170.0,0.00051603]
[1760068842421,0.94257985,121180.0,121170.0,0.00051603]
[1760068842658,0.55381179,121180.0,121170.0,0.00051603]
[1760068842890,0.78752926,121180.0,121170.0,0.00051603]
[1760068843115,0.78752926,121180.0,121170.0,0.03081603]
[1760068843356,0.1649612,121180.0,121170.0,0.05654603]
[1760068843591,0.4846012,121180.0,121170.0,0.05654603]
[1760068843798,0.16504373,121180.0,121170.0,0.46181982]
[1760068844042,0.48472373,121180.0,121170.0,0.61037144]
[1760068844275,0.48461185,121180.0,121170.0,0.61037144]
[1760068845371,0.48472373,121180.0,121170.0,0.44531409]
[1760068845580,0.48472373,121180.0,121170.0,0.08133361]
[1760068847153,0.48448962,121180.0,121170.0,0.05560361]
[1760068847360,0.48448962,121180.0,121170.0,0.08125361]
[1760068849141,0.25064962,121180.0,121170.0,0.08125361]
[1760068849351,0.48460962,121180.0,121170.0,0.24631096]
[1760068849559,0.16504373,121180.0,121170.0,0.24631096]
[1760068849797,0.39896373,121180.0,121170.0,0.24631096]
[1760068850012,0.23368589,121180.0,121170.0,0.24631096]
[1760068850650,0.39872962,121180.0,121170.0,0.24631096]
[1760068851519,0.39872962,121180.0,121170.0,0.08125361]
[1760068851721,0.16504373,121180.0,121170.0,0.08125361]
[1760068851961,0.39900373,121180.0,121170.0,0.08125361]
[1760068852180,0.39896373,121180.0,121170.0,0.08125361]
[1760068852845,0.23392,121180.0,121170.0,0.24631096]
[1760068853498,0.16504373,121180.0,121170.0,0.24631096]
[1760068853749,0.39896373,121180.0,121170.0,0.24631096]
[1760068854402,0.39868261,121180.0,121170.0,0.24631096]
[1760068854613,0.39868261,121180.0,121170.0,0.24731096]
[1760068854828,0.16476261,121180.0,121170.0,0.08225361]
[1760068855069,0.16476261,121180.0,121170.0,0.00151603]
[1760068855285,0.39864261,121180.0,121170.0,0.00151603]
[1760068855501,0.16476261,121180.0,121170.0,0.00151603]
[1760068855706,0.39872261,121180.0,121170.0,0.00151603]
[1760068856172,0.39872261,121180.0,121170.0,0.01800603]
[1760068856376,0.39872261,121180.0,121170.0,0.01900603]
[1760068856591,0.16476261,121180.0,121170.0,0.00151603]
[1760068856806,0.39872261,121180.0,121170.0,0.00151603]
[1760068857026,0.84321096,121180.0,121170.0,0.00151603]
[1760068857233,1.07717096,121180.0,121170.0,0.00151603]
[1760068857450,1.10196345,121180.0,121170.0,0.00151603]
[1760068857674,1.16736684,121180.0,121170.0,0.00151603]
[1760068857898,0.93340684,121180.0,121170.0,0.00151603]
[1760068858132,0.25491243,121180.0,121170.0,0.00151603]
[1760068858357,0.48889936,121180.0,121170.0,0.00151603]
[1760068858559,0.48889936,121180.0,121170.0,0.00051603]
[1760068859416,0.47349597,121180.0,121170.0,0.00051603]
[1760068859641,0.23941597,121180.0,121170.0,0.00051603]
[1760068859855,0.55933597,121180.0,121170.0,0.00051603]
[1760068860103,0.23941597,121180.0,121170.0,0.00051603]
[1760068860303,0.23941597,121180.0,121170.0,0.03049603]
[1760068860514,0.30088373,121180.0,121170.0,0.22120338]
[1760068860718,0.48504373,121180.0,121170.0,0.05614603]
[1760068861140,0.25088373,121180.0,121170.0,0.05614603]
[1760068861577,0.48504373,121180.0,121170.0,0.05614603]
[1760068862671,0.48480962,121180.0,121170.0,0.05614603]
[1760068864533,0.37848989,121180.0,121170.0,0.05614603]
[1760068864952,0.14432989,121180.0,121170.0,0.05614603]
[1760068865181,0.37844989,121180.0,121170.0,0.03049603]
[1760068865416,0.37844989,121180.0,121170.0,0.05736603]
[1760068865838,0.8228243,121180.0,121170.0,0.05736603]
[1760068866068,0.37844989,121180.0,121170.0,0.05736603]
[1760068866288,0.37816877,121180.0,121170.0,0.05736603]
[1760068866773,0.14404877,121180.0,121170.0,0.05736603]
[1760068867006,0.08584,121180.0,121170.0,0.22242338]
[1760068867461,0.08584,121180.0,121170.0,0.25257528]
[1760068867678,0.25223506,121200.0,121190.0,0.16503011]
[1760068867894,0.48644531,121200.0,121190.0,0.04629301]
[1760068868098,0.48644531,121200.0,121190.0,0.05566]
[1760068868738,0.48640531,121200.0,121190.0,0.05566]
[1760068869788,0.40056531,121200.0,121190.0,0.05566]
[1760068870004,0.48640531,121200.0,121190.0,0.05566]
[1760068871698,0.48636531,121200.0,121190.0,0.05566]
[1760068872127,0.48624875,121200.0,121190.0,0.05566]
[1760068873021,0.16618869,121200.0,121190.0,0.05566]
[1760068873244,0.40022869,121200.0,121190.0,0.23719312]
[1760068873463,0.40022869,121200.0,121190.0,0.22069011]
[1760068873679,0.16618869,121200.0,121190.0,0.22069011]
[1760068873888,0.00117219,121200.0,121190.0,0.22069011]
[1760068874103,0.40022869,121200.0,121190.0,0.22069011]
[1760068874315,0.16618869,121200.0,121190.0,0.22069011]
[1760068874526,0.00117219,121200.0,121190.0,0.22069011]
[1760068874946,0.23521219,121200.0,121190.0,0.22069011]
[1760068875823,0.00117219,121200.0,121190.0,0.22069011]
[1760068876031,0.23517219,121200.0,121190.0,0.22069011]
[1760068876236,0.23517219,121200.0,121190.0,0.22910285]
[1760068876687,0.23517219,121200.0,121190.0,0.23010285]
[1760068876868,0.2347031,121200.0,121190.0,0.23010285]
[1760068877107,0.0007031,121200.0,121190.0,0.60025475]
[1760068877350,0.0007031,121200.0,121190.0,1.27874916]
[1760068877573,0.0007031,121200.0,121190.0,1.51282916]
[1760068877796,0.0007031,121200.0,121190.0,1.27874916]
[1760068877996,0.0007031,121200.0,121190.0,1.53764572]
[1760068880171,0.17321472,121240.0,121210.0,0.16499135]
[1760068880395,0.17321472,121240.0,121220.0,0.19410819]
[1760068880396,0.01132,121230.0,121220.0,0.19410819]
[1760068880612,0.01132,121230.0,121220.0,0.17760927]
[1760068880826,0.01132,121230.0,121220.0,0.19477927]
[1760068881047,0.17629566,121230.0,121220.0,0.19477927]
[1760068881275,0.17629566,121230.0,121220.0,0.22064927]
[1760068881938,0.17629566,121230.0,121220.0,0.05566]
[1760068882149,0.39858657,121230.0,121220.0,0.05566]
[1760068882363,0.16450657,121230.0,121220.0,0.05566]
[1760068882577,0.17326523,121240.0,121220.0,0.23714819]
[1760068882790,0.17426523,121240.0,121230.0,0.03849]
[1760068883037,0.40830523,121240.0,121230.0,0.03849]
[1760068883251,0.40830523,121240.0,121230.0,0.05566]
[1760068883910,0.40730523,121240.0,121230.0,0.23713322]
[1760068884132,0.40730523,121240.0,121230.0,0.22063566]
[1760068884567,0.17326523,121240.0,121230.0,0.05566]
[1760068884781,0.40730523,121240.0,121230.0,0.07215756]
[1760068885224,0.17326523,121240.0,121230.0,0.07215756]
[1760068885422,0.40726523,121240.0,121230.0,0.07215756]
[1760068885878,0.17326523,121240.0,121230.0,0.07215756]
[1760068886302,0.17532788,121240.0,121230.0,0.23713322]
[1760068886514,0.17528184,121240.0,121230.0,0.22063566]
[1760068886726,0.17528184,121240.0,121230.0,0.05566]
[1760068886956,0.16496662,121240.0,121230.0,0.22063566]
[1760068887821,0.17321472,121240.0,121230.0,0.22063566]
[1760068888322,0.17321472,121240.0,121230.0,0.05566]
[1760068888559,0.17321472,121240.0,121230.0,0.22063566]
[1760068888985,0.17321472,121240.0,121230.0,0.05566]
[1760068889859,0.17315857,121240.0,121230.0,0.05566]
[1760068891758,0.17315857,121240.0,121230.0,0.05591352]
[1760068892212,0.17268963,121240.0,121230.0,0.05591352]
[1760068892444,0.17245734,121240.0,121230.0,0.05591352]
[1760068894804,0.17236431,121240.0,121230.0,0.05591352]
[1760068895440,0.68983333,121240.0,121230.0,0.05591352]
[1760068896716,0.17236431,121240.0,121230.0,0.05591352]
[1760068896966,0.68983333,121240.0,121230.0,0.05591352]
[1760068897359,0.69753577,121240.0,121230.0,0.05591352]
[1760068898072,0.69753577,121240.0,121230.0,0.03004352]
[1760068898299,0.69753577,121240.0,121230.0,0.03016565]
[1760068898512,1.21500479,121240.0,121230.0,0.00037565]
[1760068898961,1.44880479,121240.0,121230.0,0.00037565]
[1760068899412,1.21500479,121240.0,121230.0,0.00037565]
[1760068900225,1.44880479,121240.0,121230.0,0.00037565]
[1760068900430,1.21500479,121240.0,121230.0,0.00037565]
[1760068900648,1.44888479,121240.0,121230.0,0.00037565]
[1760068900853,0.93141577,121240.0,121230.0,0.00037565]
[1760068901048,0.98141577,121240.0,121230.0,0.00037565]
[1760068901253,0.9813721,121240.0,121230.0,0.00037565]
[1760068901881,1.26496112,121240.0,121230.0,0.00037565]
[1760068902103,1.36618129,121240.0,121230.0,0.00037565]
[1760068902316,1.60006129,121240.0,121230.0,0.00037565]
[1760068902777,1.60002129,121240.0,121230.0,0.00037565]
[1760068903007,0.56186636,121240.0,121230.0,0.00037565]
[1760068903234,1.5968044,121240.0,121230.0,0.00037565]
[1760068903917,1.3629644,121240.0,121230.0,0.00037565]
[1760068904392,1.61458244,121240.0,121230.0,0.00037565]
[1760068904636,1.29494244,121240.0,121230.0,0.00037565]
[1760068904897,0.76069538,121240.0,121230.0,0.01829565]
[1760068905136,0.99469538,121240.0,121230.0,0.01829565]
[1760068905350,0.76069538,121240.0,121230.0,0.01829565]
[1760068905582,0.99477538,121240.0,121230.0,0.01829565]
[1760068906064,0.24322636,121240.0,121230.0,0.01829565]
[1760068906299,0.22780619,121240.0,121230.0,0.05592565]
[1760068906512,0.46188619,121240.0,121230.0,0.05592565]
[1760068906755,0.74527521,121240.0,121230.0,0.03070565]
[1760068906964,0.97935521,121240.0,121230.0,0.03070565]
[1760068907188,0.97935521,121240.0,121230.0,0.05592565]
[1760068907438,0.97935521,121240.0,121230.0,0.03070565]
[1760068909032,0.97835521,121240.0,121230.0,0.03070565]
[1760068909273,0.97835521,121240.0,121230.0,0.00037565]
[1760068909511,1.26174423,121240.0,121230.0,0.00037565]
[1760068909742,1.5112229,121240.0,121230.0,0.00037565]
[1760068909957,1.50874847,121240.0,121230.0,0.00037565]
[1760068910582,0.99127945,121240.0,121230.0,0.00037565]
[1760068911240,0.97584078,121240.0,121230.0,0.00037565]
[1760068911662,0.75723842,121240.0,121230.0,0.00037565]
[1760068911872,0.99127842,121240.0,121230.0,0.00037565]
[1760068912095,0.75723842,121240.0,121230.0,0.00037565]
[1760068912516,0.99123842,121240.0,121230.0,0.00037565]
[1760068914304,1.27470744,121240.0,121230.0,0.00037565]
[1760068914530,1.50866744,121240.0,121230.0,0.00037565]
[1760068915201,0.99119842,121240.0,121230.0,0.00037565]
[1760068915626,1.0163446,121240.0,121230.0,0.00037565]
[1760068915844,1.2503046,121240.0,121230.0,0.00037565]
[1760068916068,1.0163446,121240.0,121230.0,0.00037565]
[1760068916282,1.0163446,121240.0,121230.0,0.01812565]
[1760068916498,1.2503046,121240.0,121230.0,0.01812565]
[1760068916720,1.2503046,121240.0,121230.0,0.03053565]
[1760068916721,1.0163446,121240.0,121230.0,0.03053565]
[1760068916954,1.2503046,121240.0,121230.0,0.03053565]
[1760068917423,1.25030306,121240.0,121230.0,0.03053565]
[1760068917688,1.01634306,121240.0,121230.0,0.03053565]
[1760068917921,1.25030306,121240.0,121230.0,0.05575565]
[1760068918382,1.25030306,121240.0,121230.0,0.03053565]
[1760068918809,1.25030306,121240.0,121230.0,0.03053564]
[1760068919454,1.23486696,121240.0,121230.0,0.03053564]
[1760068921157,1.40463299,121240.0,121230.0,0.00037564]
[1760068921388,1.63855299,121240.0,121230.0,0.00037564]
[1760068921835,1.40463299,121240.0,121230.0,0.00037564]
[1760068922056,1.63859299,121240.0,121230.0,0.00037564]
[1760068923185,2.80345579,121240.0,121230.0,0.00037564]
[1760068923464,1.40463299,121240.0,121230.0,0.00037564]
[1760068923700,1.70070158,121240.0,121230.0,0.00037564]
[1760068924607,1.70270158,121240.0,121230.0,0.00037564]
[1760068925108,1.70170158,121240.0,121230.0,0.00037564]
[1760068925339,1.70270158,121240.0,121230.0,0.00037564]
[1760068925560,0.38963878,121240.0,121230.0,0.00037564]
[1760068925785,1.08041398,121240.0,121230.0,0.00037564]
[1760068926019,1.78850158,121240.0,121230.0,0.00037564]
[1760068926482,1.55450158,121240.0,121230.0,0.00037564]
[1760068926914,1.78846158,121240.0,121230.0,0.00037564]
[1760068927129,1.77302315,121240.0,121230.0,0.00037564]
[1760068927336,1.53906315,121240.0,121230.0,0.00037564]
[1760068927561,1.78075728,121240.0,121230.0,0.00037564]
[1760068928905,1.76532071,121240.0,121230.0,0.00037564]
[1760068929542,1.44556071,121240.0,121230.0,0.00037564]
[1760068929767,1.76532071,121240.0,121230.0,0.00037564]
[1760068929998,1.76284628,121240.0,121230.0,0.00037564]
[1760068931083,1.52888628,121240.0,121230.0,0.00037564]
[1760068931303,1.76280628,121240.0,121230.0,0.00037564]
[1760068932094,1.78595719,121240.0,121230.0,0.00037564]
[1760068932265,1.76280628,121240.0,121230.0,0.00037564]
[1760068932467,1.78595629,121240.0,121230.0,0.00037564]
[1760068932698,1.77823962,121240.0,121230.0,0.00037564]
[1760068932897,1.76280628,121240.0,121230.0,0.00037564]
[1760068933469,1.78595375,121240.0,121230.0,0.00037564]
[1760068935180,1.55207375,121240.0,121230.0,0.00037564]
[1760068935454,1.78595375,121240.0,121230.0,0.00037564]
[1760068935648,1.55207375,121240.0,121230.0,0.00037564]
[1760068935851,1.78595375,121240.0,121230.0,0.00037564]
[1760068937399,1.78591375,121240.0,121230.0,0.00037564]
[1760068938013,0.16500288,121210.0,121190.0,0.03848]
[1760068938249,0.94148917,121200.0,121190.0,0.02923122]
[1760068938461,1.17532917,121200.0,121190.0,0.02923122]
[1760068938895,1.17532917,121200.0,121190.0,0.05530122]
[1760068939117,0.16503011,121190.0,121180.0,0.01229]
[1760068939327,0.39883011,121190.0,121180.0,0.03836]
[1760068939540,0.78762218,121190.0,121180.0,0.05552]
[1760068939751,0.55382218,121190.0,121180.0,0.05552]
[1760068939960,0.78766218,121190.0,121180.0,0.05552]
[1760068940180,0.55382218,121190.0,121180.0,0.05552]
[1760068940394,0.78766218,121190.0,121180.0,0.05552]
[1760068940815,0.55382218,121190.0,121180.0,0.03045]
[1760068941027,0.78766218,121190.0,121180.0,0.03045]
[1760068941237,0.55382218,121190.0,121180.0,0.03045]
[1760068941449,0.78651498,121190.0,121180.0,0.03045]
[1760068941672,0.55267498,121190.0,121180.0,0.03045]
[1760068941878,0.16438738,121190.0,121180.0,0.03045]
[1760068942091,0.78651498,121190.0,121180.0,0.05652]
[1760068942297,0.78651498,121190.0,121180.0,0.03045]
[1760068942510,0.94096258,121190.0,121180.0,0.001]
[1760068942816,1.17480258,121190.0,121180.0,0.001]
[1760068943078,0.16505735,121170.0,121160.0,0.03836]
[1760068943262,0.78718495,121170.0,121160.0,0.03836]
[1760068943472,0.78718495,121170.0,121160.0,0.05552]
[1760068943682,0.55334495,121170.0,121160.0,0.05552]
[1760068943888,0.78718495,121170.0,121160.0,0.05999425]
[1760068944319,0.55334495,121170.0,121160.0,0.05999425]
[1760068944531,0.78718495,121170.0,121160.0,0.05999425]
[1760068944741,0.55334495,121170.0,121160.0,0.05999425]
[1760068944952,0.78718495,121170.0,121160.0,0.05999425]
[1760068945161,0.55334495,121170.0,121160.0,0.05999425]
[1760068945385,0.78714495,121170.0,121160.0,0.05999425]
[1760068945618,0.55334495,121170.0,121160.0,0.05999425]
[1760068945834,0.78714495,121170.0,121160.0,0.05999425]
[1760068946273,0.55334495,121170.0,121160.0,0.06099425]
[1760068946492,0.39885735,121170.0,121160.0,0.06099425]
[1760068946931,0.78714495,121170.0,121160.0,0.06099425]
[1760068947153,0.55334495,121170.0,121160.0,0.06099425]
[1760068947378,0.78714495,121170.0,121160.0,0.06099425]
[1760068947590,0.78714495,121170.0,121160.0,0.03492425]
[1760068947806,0.55334495,121170.0,121160.0,0.03492425]
[1760068948030,0.78718495,121170.0,121160.0,0.03492425]
[1760068948469,0.55334495,121170.0,121160.0,0.03492425]
[1760068948683,0.39885735,121170.0,121160.0,0.06099425]
[1760068948899,0.55334495,121170.0,121160.0,0.06099425]
[1760068949121,0.78714495,121170.0,121160.0,0.06099425]
[1760068950700,0.39885735,121170.0,121160.0,0.06099425]
[1760068950932,0.16505735,121170.0,121160.0,0.06099425]
[1760068951362,0.78714495,121170.0,121160.0,0.06099425]
[1760068951758,0.55334495,121170.0,121160.0,0.06099425]
[1760068951995,0.55334495,121170.0,121160.0,0.03492425]
[1760068952201,0.55334495,121170.0,121160.0,0.06099425]
[1760068952415,0.78714495,121170.0,121160.0,0.06099425]
[1760068952624,0.55334495,121170.0,121160.0,0.06099425]
[1760068952831,0.16505735,121170.0,121160.0,0.23757232]
[1760068953038,0.39885735,121170.0,121160.0,0.22106523]
[1760068953249,0.16505492,121180.0,121160.0,0.22106523]
[1760068953461,0.16505735,121170.0,121160.0,0.19052098]
[1760068954081,0.39881735,121170.0,121160.0,0.21612098]
[1760068954301,0.39881735,121170.0,121160.0,0.21512098]
[1760068954492,0.16505735,121170.0,121160.0,0.21512098]
[1760068954704,0.39881735,121170.0,121160.0,0.21612098]
[1760068954883,0.23376,121170.0,121160.0,0.21612098]
[1760068955225,0.64676648,121190.0,121170.0,0.16505735]
[1760068955430,0.39888373,121180.0,121170.0,0.19483308]
[1760068955642,0.64676648,121190.0,121170.0,0.17832735]
[1760068955869,0.64676648,121190.0,121180.0,0.05592]
[1760068956070,0.88060648,121190.0,121180.0,0.05592]
[1760068956708,0.79476648,121190.0,121180.0,0.05592]
[1760068957129,0.17263888,121190.0,121180.0,0.05592]
[1760068957338,0.56092648,121190.0,121180.0,0.05592]
[1760068957548,0.79472648,121190.0,121180.0,0.05592]
[1760068958639,0.16553458,121190.0,121180.0,0.60925133]
[1760068958854,0.23430447,121190.0,121180.0,0.60925133]
[1760068959064,0.00050447,121190.0,121180.0,0.60925133]
[1760068959272,0.00050447,121190.0,121180.0,0.94925133]
[1760068959715,0.23434447,121190.0,121180.0,0.94925133]
[1760068960132,0.39937458,121190.0,121180.0,0.39592]
[1760068960337,0.55382218,121190.0,121180.0,0.39592]
[1760068960554,0.78766218,121190.0,121180.0,0.39692]
[1760068961211,0.78766218,121190.0,121180.0,0.56096373]
[1760068961416,0.39937458,121190.0,121180.0,0.56096373]
[1760068961623,0.39937458,121190.0,121180.0,0.39692]
[1760068961833,0.16553458,121190.0,121180.0,0.39692]
[1760068962052,0.78766218,121190.0,121180.0,0.39692]
[1760068962729,0.78766218,121190.0,121180.0,0.56196373]
[1760068963563,0.78766218,121190.0,121180.0,0.39692]
[1760068963995,0.16553458,121190.0,121180.0,0.39692]
[1760068964214,0.16553458,121190.0,121180.0,0.56540558]
[1760068964437,0.39937458,121190.0,121180.0,0.56540558]
[1760068964659,0.16553458,121190.0,121180.0,0.56540558]
[1760068964886,0.39937458,121190.0,121180.0,0.56440558]
[1760068965120,0.39937458,121190.0,121180.0,0.39936185]
[1760068965487,0.16553458,121190.0,121180.0,0.39936185]
[1760068965704,0.16553458,121190.0,121180.0,0.40036185]
[1760068965705,0.39937458,121190.0,121180.0,0.40036185]
[1760068966149,0.39937458,121190.0,121180.0,0.56540558]
[1760068966569,0.39937458,121190.0,121180.0,0.40036185]
[1760068966782,0.16553458,121190.0,121180.0,0.40036185]
[1760068967002,0.39933458,121190.0,121180.0,0.40036185]
[1760068967429,0.16553458,121190.0,121180.0,0.40036185]
[1760068967637,0.23430447,121190.0,121180.0,0.95369318]
[1760068967851,0.23430447,121190.0,121180.0,0.56540558]
[1760068968063,0.00050447,121190.0,121180.0,0.56540558]
[1760068968285,0.23430447,121190.0,121180.0,0.56540558]
[1760068968499,0.39933458,121190.0,121180.0,0.56540558]
[1760068971999,0.00050447,121190.0,121180.0,0.56540558]
[1760068972217,0.23426447,121190.0,121180.0,0.56540558]
[1760068972456,0.39929458,121190.0,121180.0,0.56540558]
[1760068972670,0.23422447,121190.0,121180.0,0.56540558]
[1760068973322,0.39925458,121190.0,121180.0,0.56540558]
[1760068976014,0.16553458,121190.0,121180.0,0.56540558]
[1760068976328,0.55382218,121190.0,121180.0,0.03476185]
[1760068976529,0.78754218,121190.0,121180.0,0.03476185]
[1760068977486,0.91728906,121190.0,121180.0,0.03476185]
[1760068978535,0.91728906,121190.0,121180.0,0.03376185]
[1760068978536,0.68356906,121190.0,121180.0,0.03376185]
[1760068978740,0.91728906,121190.0,121180.0,0.03376185]
[1760068979334,0.68356906,121190.0,121180.0,0.03376185]
[1760068979541,0.91728906,121190.0,121180.0,0.03376185]
[1760068980508,0.91728906,121190.0,121180.0,0.00344185]
[1760068980872,0.91728906,121190.0,121180.0,0.01956185]
[1760068981053,0.39925458,121190.0,121180.0,0.03208185]
[1760068981266,0.91728906,121190.0,121180.0,0.03208185]
[1760068982971,0.39925458,121190.0,121180.0,0.05667185]
[1760068983206,0.91728906,121190.0,121180.0,0.05667185]
[1760068983992,0.91728906,121190.0,121180.0,0.03208185]
[1760068986202,0.68356906,121190.0,121180.0,0.00344185]
[1760068986466,0.91728906,121190.0,121180.0,0.00344185]
[1760068987141,1.25728906,121190.0,121180.0,0.00344185]
[1760068987864,1.31950082,121190.0,121180.0,0.00344185]
[1760068988757,1.34263574,121190.0,121180.0,0.00344185]
[1760068989209,0.80917798,121190.0,121180.0,0.00344185]
[1760068989419,1.32721246,121190.0,121180.0,0.00344185]
[1760068990093,1.31950082,121190.0,121180.0,0.00344185]
[1760068992601,1.36950082,121190.0,121180.0,0.00344185]
[1760068994779,1.79886082,121190.0,121180.0,0.00344185]
[1760068994985,1.13578082,121190.0,121180.0,0.00344185]
[1760068995215,1.79886082,121190.0,121180.0,0.00344185]
[1760068996472,1.13578082,121190.0,121180.0,0.00344185]
[1760068996678,1.79886082,121190.0,121180.0,0.00344185]
[1760068996931,1.13578082,121190.0,121180.0,0.00344185]
[1760068997157,1.28082634,121190.0,121180.0,0.00344185]
[1760068997383,1.79886082,121190.0,121180.0,0.00344185]